[Event "74th PGNiG TERMIKA POL-ch Women 2022"]
[Site "Kruszwica"]
[Date "2022.05.16"]
[Round "8.1"]
[White "Zawadzka, Jolanta"]
[Black "Kiolbasa, Oliwia"]
[Result "0-1"]
[ECO "C55"]
[WhiteElo "2409"]
[BlackElo "2375"]
[Annotator "TA"]
[PlyCount "78"]
[EventDate "2022.05.09"]
[EventType "tourn"]
[EventCountry "POL"]
[SourceTitle "playchess.com"]
[Source "ChessBase"]
[SourceQuality "1"]
[TimeControl "40/5400+30:1800+30"]

{[%evp 12,78,25,11,17,16,35,0,0,-41,-40,-54,-28,-60,-61,-80,-91,-101,-94,-344,-368,-347,-334,-409,-371,-408,-405,-354,-388,-375,-279,-281,-277,-276,-276,-273,-272,-261,-266,-316,-282,-302,-281,-367,-384,-503,-500,-488,-480,-574,-589,-579,-579,-767,-816,-808,-806,-802,-795,-776,-762,-736,-720,-29986,-29987,-29987,-1754,-29988,-954]} 1. e4 {[%emt 0:00:02]} e5 {[%emt 0:00:08]} 2. Nf3 {[%emt 0:00:05]} Nc6 {[%emt 0:00:09]} 3. Bc4 {[%emt 0:00:04]} Nf6 {[%emt 0:00:12]} 4. d3 {[%emt 0:00:05]} Be7 {[%emt 0:00:21]} 5. O-O {[%emt 0:00:12]} d6 {[%emt 0:02:04]} 6. a3 {[%emt 0:00:49]} O-O {[%emt 0:02:13]} 7. Nc3 {[%emt 0:00:05]} Be6 {[%emt 0:19:09] C55: Two Knights: 4 d3, 4 d4 exd4 5 e5 and Max Lange Attack.} 8. Nd5 {[%emt 0:00:09]} Nb8 {[%emt 0:03:00][%cal Bc6b8,Bb8d7,Bd7e5][%mdl 32] [#] 8...Nd4 is setting a new trend.} 9. b4 $146 {[%emt 0:08:48]} ({Predecessor:} 9. Nxf6+ Bxf6 10. Bxe6 fxe6 11. c3 Nc6 12. b4 Qe8 13. b5 Nb8 14. a4 Nd7 15. d4 exd4 16. cxd4 {0-1 (39) Dubov,D (2711)-Melkumyan,H (2649) Chess.com INT 2022}) 9... Nxd5 {[%emt 0:04:39] The position is equal.} 10. exd5 {[%emt 0:00:22]} Bg4 {[%emt 0:00:18]} 11. Qe2 {[%emt 0:01:04]} Nd7 {[%emt 0:03:20]} 12. Bb2 {[%emt 0:10:14]} f5 {[%emt 0:03:30][%cal Bf7f5,Bf5g4][%mdl 32]} 13. h3 {[%emt 0:04:47]} Bh5 {[%emt 0:02:37]} 14. Bb3 {[%emt 0:01:42]} Bf6 {[%emt 0:10:12][%cal Oe5e4,Be7f6,Bf6e5,Be5g3][%mdl 32]} 15. c3 $2 {[%emt 0:01:29]} (15. Qe3 $17) 15... e4 $1 $19 {[%emt 0:05:42]} 16. dxe4 Ne5 $1 {[%emt 0:08:51]} 17. g4 {[%emt 0:21:46]} fxg4 {[%emt 0:00:08]} 18. Nxe5 {[%emt 0:02:22]} Bxe5 {[%emt 0:00:09]} 19. hxg4 {[%emt 0:00:54] [#]} Qh4 $1 {[%emt 0:08:38][%csl Ge5][%cal Rh4h2]} 20. f3 {[%emt 0:00:08] [#]} Rxf3 $3 {[%emt 0:04:42][%mdl 576] Remove Defender, Decoy} 21. Rxf3 {[%emt 0:02:11]} Qxg4+ {[%emt 0:00:07]} 22. Kf2 {[%emt 0:01:06][%cal Oa1f1] [#] And now Rf1! would win.} Bg3+ $1 {[%emt 0:01:01][%mdl 576] Pin} 23. Ke3 {[%emt 0:03:08]} Re8 {[%emt 0:00:12] Dancing on a razor blade.} 24. Bc2 {[%emt 0:01:32] [#] aiming for Raf1.} Bf4+ $1 {[%emt 0:01:22][%mdl 576] Pin} 25. Kd4 {[%emt 0:20:23]} ({Wrong is} 25. Kf2 $2 Qh4+ 26. Kf1 Bg3 27. Rxg3 Rf8+ 28. Kg2 Bxe2 $19) (25. Kd3 Qxf3+) 25... Qxf3 {[%emt 0:02:19]} 26. Qxf3 {[%emt 0:00:03]} Bxf3 {[%emt 0:00:07]} 27. Bc1 {[%emt 0:00:06]} Be5+ {[%emt 0:01:03]} 28. Kc4 {[%emt 0:00:09]} h5 {[%emt 0:01:41][%cal Bh7h5,Bh5h4,Bh4h3][%mdl 32]} 29. Bg5 {[%emt 0:00:51]} Bg3 {[%emt 0:00:37] Against Re1} 30. Kd4 {[%emt 0:01:46]} h4 {[%emt 0:04:30]} 31. Ke3 {[%emt 0:00:18]} Bg2 {[%emt 0:00:47] Strongly threatening ...h3.} 32. Bf4 {[%emt 0:04:17]} Bxf4+ {[%emt 0:02:15]} 33. Kxf4 {[%emt 0:00:03][%mdl 4096] Endgame KRB-KRB} Rf8+ {[%emt 0:00:10]} 34. Kg4 {[%emt 0:00:04]} h3 {[%emt 0:00:32] Threatens to win with ...h2.} 35. Kg3 {[%emt 0:01:03]} Rf3+ {[%emt 0:01:05]} 36. Kh2 {[%emt 0:00:04]} g5 {[%emt 0:03:49][%cal Bg7g5,Bg5g4,Bg4g3][%mdl 32] ( -> ...g4)} 37. e5 {[%emt 0:02:19]} g4 {[%emt 0:01:04]} 38. Be4 {[%emt 0:00:33]} g3+ {[%emt 0:00:10]} 39. Kg1 {[%emt 0:00:04] [#]} Rf2 {[%emt 0:00:07] Black took control after the opening.  Weighted Error Value: White=0.69/Black=0.04 (flawless)} (39... Rf1+ $142 $1 {[%mdl 512]} 40. Rxf1 Bxe4 41. Rf4 h2+ 42. Kf1 g2+ 43. Ke2 g1=Q 44. Rh4 Qg2+ 45. Ke3 Qf3+ 46. Kd2 Qf2+ 47. Kd1 Qxh4 48. Ke2 h1=Q 49. Ke3 Qg3+ 50. Ke2 Qhe1#) 0-1

[Event "74th PGNiG TERMIKA POL-ch Women 2022"]
[Site "Kruszwica"]
[Date "2022.05.16"]
[Round "8.2"]
[White "Antolak, Julia"]
[Black "Majdan, Joanna"]
[Result "1/2-1/2"]
[ECO "B31"]
[WhiteElo "2371"]
[BlackElo "2325"]
[Annotator "TA"]
[PlyCount "107"]
[EventDate "2022.05.09"]
[EventType "tourn"]
[EventCountry "POL"]
[SourceTitle "playchess.com"]
[Source "ChessBase"]
[SourceQuality "1"]
[TimeControl "40/5400+30:1800+30"]

{[%evp 14,107,0,0,12,7,7,7,7,-23,-7,-20,-15,-29,-29,-35,-19,-63,-76,-88,-69,-166,-187,-211,-221,-289,-279,-277,-142,-139,-35,-97,-103,-92,-108,-94,-99,-87,-81,-88,-57,-70,-67,-134,-55,-55,-54,-53,-54,-61,-7,-7,-7,-7,-7,-7,-7,-8,-8,-14,-14,-14,-14,-14,-14,-17,-17,-17,-8,-17,-8,-17,0,-17,-17,-17,-8,-8,-8,-40,-40,-40,-40,-40,0,0,0,0,0,0,0,0,0,0,0,0]} 1. e4 {[%emt 0:00:02]} c5 {[%emt 0:00:03]} 2. Nf3 {[%emt 0:00:05]} Nc6 {[%emt 0:00:10]} 3. Bb5 {[%emt 0:00:07]} g6 {[%emt 0:00:06]} 4. O-O {[%emt 0:00:34]} Bg7 {[%emt 0:00:12]} 5. c3 {[%emt 0:00:39]} Nf6 {[%emt 0:01:38][%cal Bg8f6,Bf6d7,Bd7e5][%mdl 32]} 6. Re1 {[%emt 0:00:34]} O-O {[%emt 0:00:25]} 7. h3 {[%emt 0:01:48]} Qb6 {[%emt 0:04:54]} 8. Ba4 {[%emt 0:06:46] 8.a4 deserves study.} d6 {[%emt 0:05:15] B31: Sicilian: 2...Nc6 3 Bb5 g6.} 9. d4 {[%emt 0:04:55]} cxd4 {[%emt 0:03:36]} 10. cxd4 {[%emt 0:04:21]} Nd7 {[%emt 0:06:44][%cal Rc6d4] [#]} 11. d5 $146 {[%emt 0:17:00]} ({Predecessor:} 11. Nc3 Nxd4 12. Nxd4 Bxd4 13. Nd5 Bxf2+ 14. Kf1 Qd4 15. Bh6 Rd8 16. Nxe7+ Kh8 17. Re2 Qxd1+ 18. Rxd1 {½-½ (32) Calio,M (2389)-Mcdermott,F (2387) ICCF email 2019}) 11... Nce5 {[%emt 0:01:57]} 12. Nxe5 {[%emt 0:00:22]} Nxe5 {[%emt 0:00:57]} 13. Nc3 {[%emt 0:01:16]} f5 {[%emt 0:06:30]} 14. Be3 {[%emt 0:16:30]} Qxb2 {[%emt 0:16:46]} 15. Bd4 {[%emt 0:03:55]} Qb4 {[%emt 0:00:37][%cal Oe5f3]} 16. Nb5 {[%emt 0:00:23]} fxe4 {[%emt 0:03:16]} 17. Rxe4 {[%emt 0:08:43]} (17. Rb1 $15 Qa5 18. Bc3) 17... Bf5 $19 {[%emt 0:02:17]} 18. a3 {[%emt 0:03:02]} Qa5 {[%emt 0:04:03]} ({Weaker is} 18... Qc4 19. Re3 a6 20. Rc3 axb5 21. Rxc4 bxc4 22. Bb5 $11) 19. Re3 {[%emt 0:00:49]} Rac8 {[%emt 0:09:15]} 20. f4 {[%emt 0:07:42] [#]} Rc4 {[%emt 0:04:03]} (20... Bd3 $1 $19 {[%cal Rd3b5][%mdl 512]} 21. Rxd3 Nxd3 22. Bxg7 Kxg7 23. Qxd3 Qxa4) 21. Bb3 $17 {[%emt 0:01:17] [#]} Qxb5 {[%emt 0:01:03]} ({Black should try} 21... Rxd4 $1 $17 22. Nxd4 {[#]} Qb6 $1) 22. fxe5 {[%emt 0:00:31] [#]} (22. Bxc4 $15 Nxc4 23. Rxe7 Bxd4+ 24. Qxd4) 22... Rxd4 $1 {[%emt 0:02:08]} 23. Qxd4 {[%emt 0:00:07]} Bxe5 {[%emt 0:00:06]} 24. Rxe5 {[%emt 0:01:24]} dxe5 {[%emt 0:00:04]} 25. Qe3 {[%emt 0:00:22] Strongly threatening d6+.} Bd3 {[%emt 0:03:59]} 26. Ba2 {[%emt 0:02:53]} Qb6 {[%emt 0:05:39]} 27. Qxb6 {[%emt 0:05:16]} axb6 $15 {[%emt 0:00:03][%mdl 4096] Endgame KRB-KRB} 28. Re1 {[%emt 0:01:05]} (28. d6+ $15 Kg7 29. Rd1) 28... e4 {[%emt 0:02:46]} (28... Kg7 $17 {White must now prevent ...e4.} 29. Rxe5 Rf1+ 30. Kh2 Kf8) 29. d6+ $1 {[%emt 0:00:37]} Kg7 {[%emt 0:00:15]} 30. dxe7 {[%emt 0:00:23]} Re8 {[%emt 0:00:52]} 31. Bb1 $1 {[%emt 0:00:08]} Bxb1 {[%emt 0:02:35]} ({Better is} 31... Kf6 $15 32. Bxd3 exd3) 32. Rxb1 $11 {[%emt 0:00:06]} Rxe7 {[%emt 0:00:03]} 33. Rxb6 $15 {[%emt 0:00:06] KR-KR} Kh6 {[%emt 0:04:43]} 34. Rb5 {[%emt 0:00:47]} e3 {[%emt 0:02:00] ( -> ...e2)} 35. Kf1 {[%emt 0:00:04]} Rf7+ {[%emt 0:02:27]} 36. Ke2 {[%emt 0:00:25]} Rf2+ {[%emt 0:00:04]} 37. Kxe3 {[%emt 0:00:03]} Rxg2 {[%emt 0:00:13] And now ...Rh2 would win.} 38. Kf3 {[%emt 0:00:05]} Ra2 {[%emt 0:00:54]} 39. Rxb7 {[%emt 0:00:06]} Rxa3+ {[%emt 0:00:05]} 40. Kg2 {[%emt 0:00:00]} Rc3 {[%emt 0:00:00]} 41. Ra7 {[%emt 0:00:40]} Re3 {[%emt 0:05:03]} 42. Rb7 {[%emt 0:00:13]} g5 {[%emt 0:00:31]} 43. Ra7 {[%emt 0:01:48]} Kg6 {[%emt 0:00:34]} 44. Rb7 {[%emt 0:00:48]} h5 {[%emt 0:02:45]} 45. Rb6+ {[%emt 0:01:04]} Kf5 {[%emt 0:00:05]} 46. Rb5+ {[%emt 0:00:07]} (46. h4 $5) 46... Kf4 {[%emt 0:00:40]} 47. Rb4+ {[%emt 0:00:07]} Re4 {[%emt 0:00:08]} 48. Rb2 {[%emt 0:00:11]} g4 {[%emt 0:01:45]} 49. hxg4 {[%emt 0:00:04] The position is equal.} Kxg4 {[%emt 0:00:11]} 50. Ra2 $1 {[%emt 0:00:08]} h4 {[%emt 0:00:05]} 51. Rb2 $1 {[%emt 0:00:09]} Rf4 {[%emt 0:00:53]} 52. Ra2 $1 {[%emt 0:00:11]} Re4 {[%emt 0:00:07]} 53. Rb2 $1 {[%emt 0:00:03]} Rf4 {[%emt 0:00:04]} 54. Ra2 $1 {[%emt 0:00:03] White happily takes the draw.  Weighted Error Value: White=0.10 (very precise) /Black=0.14 (very precise)} 1/2-1/2

[Event "74th PGNiG TERMIKA POL-ch Women 2022"]
[Site "Kruszwica"]
[Date "2022.05.16"]
[Round "8.3"]
[White "Rudzinska, Michalina"]
[Black "Cyfka, Karina"]
[Result "1-0"]
[ECO "C24"]
[WhiteElo "2236"]
[BlackElo "2404"]
[Annotator "TA"]
[PlyCount "133"]
[EventDate "2022.05.09"]
[EventType "tourn"]
[EventCountry "POL"]
[SourceTitle "playchess.com"]
[Source "ChessBase"]
[SourceQuality "1"]
[TimeControl "40/5400+30:1800+30"]

{[%evp 12,133,4,10,12,5,41,43,48,40,68,59,74,83,122,54,65,49,51,49,60,38,29,0,52,-17,-17,-21,50,16,65,22,23,0,0,0,0,0,0,0,0,-25,0,0,0,0,72,83,84,90,77,0,51,0,0,0,0,0,0,8,106,106,147,138,139,128,168,181,288,267,254,141,263,277,258,154,285,332,352,381,473,450,506,501,491,496,422,317,326,327,587,584,568,237,673,626,793,632,1172,1151,2025,1718,1712,1571,2422,2322,4727,3699,4718,3358,29986,29987,29987,29988,29988,29989,29989,29989,29989,29990,29990,29991,29991,29992]} 1. e4 {[%emt 0:00:03]} e5 {[%emt 0:00:05]} 2. Bc4 {[%emt 0:00:07]} Nf6 {[%emt 0:01:04]} 3. d3 {[%emt 0:00:09]} Nc6 {[%emt 0:00:35]} 4. Nc3 {[%emt 0:00:11]} Bc5 {[%emt 0:12:54]} 5. f4 {[%emt 0:00:50]} d6 {[%emt 0:00:49]} 6. Nf3 {[%emt 0:00:10]} exf4 {[%emt 0:07:19]} 7. Bxf4 {[%emt 0:03:56]} Bg4 {[%emt 0:09:13] 7...0-0 is more advanced technology. C28: Vienna Game: 2...Nf6 3 Bc4 Nc6.} 8. Qd2 {[%emt 0:06:34]} Bxf3 {[%emt 0:11:54]} 9. gxf3 {[%emt 0:00:08]} Ne5 {[%emt 0:01:28] White is slightly better.} 10. O-O-O {[%emt 0:04:51]} Nh5 {[%emt 0:02:12] [#]} 11. Be3 $146 {[%emt 0:07:13]} ({Predecessor:} 11. Bxe5 dxe5 12. Kb1 Nf4 13. Ne2 Nxe2 14. Qxe2 Qe7 15. f4 exf4 16. d4 Bb6 17. Qg4 {1-0 (26) Hermlin,A (2262)-Sisatto,O (2204) Finland 2005}) 11... Bxe3 {[%emt 0:12:46]} 12. Qxe3 {[%emt 0:00:12]} Ng6 {[%emt 0:02:06]} 13. Ne2 {[%emt 0:11:21]} (13. f4 $16) 13... Qf6 $14 {[%emt 0:02:29]} 14. d4 {[%emt 0:09:10]} O-O {[%emt 0:01:43]} 15. Rhg1 {[%emt 0:02:03]} Nhf4 {[%emt 0:02:39]} 16. Rg4 {[%emt 0:05:35][%cal Re2f4]} Nxe2+ {[%emt 0:00:32]} 17. Qxe2 {[%emt 0:00:12][%cal Oh2h4]} c6 {[%emt 0:03:52]} (17... h5 $11 18. Rg3 Nf4) 18. a3 {[%emt 0:15:49]} (18. Qe3 $14) 18... b5 $11 {[%emt 0:04:38]} 19. Ba2 {[%emt 0:00:06]} Rab8 {[%emt 0:00:40]} (19... h5 $1 $11 20. Rg3 Nf4) 20. Rdg1 {[%emt 0:05:30][%cal Of3f4]} Kh8 {[%emt 0:03:48]} (20... Qxd4 $11 21. h4 Qf6) 21. Qf2 {[%emt 0:04:48]} c5 {[%emt 0:01:53]} 22. e5 {[%emt 0:02:12]} dxe5 {[%emt 0:06:35][%cal Rc5d4]} 23. dxc5 {[%emt 0:00:06]} a5 {[%emt 0:00:30]} 24. Qe3 {[%emt 0:04:20]} b4 {[%emt 0:01:15]} 25. a4 {[%emt 0:00:12]} Rbc8 {[%emt 0:00:39]} 26. Bd5 {[%emt 0:05:36] Prevents Qc6.} Qe7 {[%emt 0:04:52] Prevents Bb7.} (26... Rc7 $5 {[%cal Rf8c8]}) 27. c6 {[%emt 0:01:53]} Qd6 {[%emt 0:00:54]} 28. Rd1 {[%emt 0:01:00][%cal Od5f7]} Rcd8 {[%emt 0:01:54]} (28... Nf4 $11 {keeps the balance.} 29. Bxf7 Qh6) 29. Rgg1 $16 {[%emt 0:01:21] White is much more active.} Qc7 {[%emt 0:00:29]} 30. Qc5 {[%emt 0:03:35]} Ne7 {[%emt 0:01:20] [#]} 31. Rg2 {[%emt 0:02:10]} (31. Bxf7 $1 $16 {Be6 is the strong threat.} Rc8 32. Bd5) 31... Rc8 {[%emt 0:00:51]} ({Black should play} 31... Qd6 $11 32. Qxd6 Rxd6) 32. Rgd2 {[%emt 0:02:24] aiming for Be4.} Nxc6 {[%emt 0:01:23]} 33. Bxc6 {[%emt 0:02:18]} Qxc6 {[%emt 0:00:01]} 34. Qxc6 {[%emt 0:00:47]} Rxc6 $11 {[%emt 0:00:01][%mdl 4096] Endgame KRR-KRR} 35. Rd5 {[%emt 0:00:19][%csl LRa5,LRe5]} Re6 {[%emt 0:01:55]} (35... b3 $11 {remains equal.}) 36. Rxa5 $16 {[%emt 0:00:06] Black is now going downhill.} f5 {[%emt 0:00:21]} 37. Rb5 {[%emt 0:00:43]} g5 {[%emt 0:00:33]} 38. Rxb4 {[%emt 0:00:27]} e4 {[%emt 0:00:27]} 39. fxe4 {[%emt 0:00:15]} fxe4 {[%emt 0:00:15]} (39... f4 $142 40. b3 f3) 40. Re1 {[%emt 0:00:00]} e3 {[%emt 0:00:00]} 41. Rg4 {[%emt 0:05:23]} (41. a5 $18) 41... h6 {[%emt 0:07:42]} (41... Rf4 $16 42. Rg3 (42. Rxg5 Rxa4 43. Kd1 Rd4+ 44. Ke2 Rd2+ 45. Kf3 Rxh2 $11) 42... Rxa4 43. Rexe3 Rd6 44. Re8+ Kg7 45. Rxg5+ Kf7) 42. Rg3 $18 {[%emt 0:03:06]} Rfe8 {[%emt 0:01:41]} 43. c4 {[%emt 0:03:32]} ({White should try} 43. b4 $18) 43... Kh7 {[%emt 0:01:49]} (43... Re4 $16) 44. Kc2 {[%emt 0:00:33]} Kg6 {[%emt 0:00:22]} 45. b4 {[%emt 0:01:06][%cal Bb2b4,Bb4b5][%mdl 32]} Kf5 {[%emt 0:01:40]} 46. a5 {[%emt 0:00:58][%cal Ba4a5,Ba5a6][%mdl 32]} g4 {[%emt 0:02:48]} 47. b5 {[%emt 0:03:48]} h5 {[%emt 0:00:03]} 48. a6 {[%emt 0:05:45]} h4 {[%emt 0:01:13]} 49. Rgg1 {[%emt 0:03:32]} e2 {[%emt 0:01:44]} 50. a7 {[%emt 0:03:49]} Kf4 $2 {[%emt 0:00:59]} (50... Ra8 {was necessary.} 51. Ra1 Rb6) 51. Ra1 {[%emt 0:02:54]} Ra8 {[%emt 0:01:45]} 52. Kc3 {[%emt 0:00:32]} (52. c5 $142 Re5 53. b6 Rxc5+ 54. Kd2) 52... Kf3 $2 {[%emt 0:05:49]} (52... Rb6 53. Rgb1 Kf3) 53. c5 {[%emt 0:00:18]} Kf2 {[%emt 0:04:45][%cal Oa8a7] Strongly threatening ...Rxa7!} 54. b6 {[%emt 0:00:38] And now b7 would win.} Ree8 {[%emt 0:01:56]} 55. Rxg4 {[%emt 0:01:46]} e1=Q+ {[%emt 0:01:32]} 56. Rxe1 {[%emt 0:00:04]} Kxe1 {[%emt 0:00:04]} 57. Rxh4 {[%emt 0:00:03]} Ke2 {[%emt 0:00:55]} 58. c6 {[%emt 0:01:01]} Kf3 {[%emt 0:00:42]} 59. c7 {[%emt 0:00:38] White threatens b7 and mate.} Re3+ {[%emt 0:00:43]} 60. Kd4 {[%emt 0:00:35] Intending Rh3+ and mate.} Re1 {[%emt 0:00:19]} 61. b7 {[%emt 0:00:56] White mates.} Rxa7 {[%emt 0:00:29]} 62. Rh3+ {[%emt 0:00:36]} Kg2 {[%emt 0:00:31]} 63. c8=Q {[%emt 0:00:12]} Ra4+ {[%emt 0:00:18]} 64. Kd5 {[%emt 0:00:22]} Ra5+ {[%emt 0:01:18]} 65. Kc4 {[%emt 0:00:11]} Re4+ {[%emt 0:01:31]} 66. Kb3 {[%emt 0:00:17]} Rb5+ {[%emt 0:00:23]} 67. Kc3 {[%emt 0:00:06] Weighted Error Value: White=0.25 (precise) /Black=0.60} 1-0

[Event "74th PGNiG TERMIKA POL-ch Women 2022"]
[Site "Kruszwica"]
[Date "2022.05.16"]
[Round "8.4"]
[White "Kulon, Klaudia"]
[Black "Malicka, Maria"]
[Result "0-1"]
[ECO "A34"]
[WhiteElo "2305"]
[BlackElo "2377"]
[Annotator "TA"]
[PlyCount "52"]
[EventDate "2022.05.09"]
[EventType "tourn"]
[EventCountry "POL"]
[SourceTitle "playchess.com"]
[Source "ChessBase"]
[SourceQuality "1"]
[TimeControl "40/5400+30:1800+30"]

{[%evp 13,52,0,6,0,13,14,8,14,24,10,37,-128,-141,-144,-133,-186,-187,-231,-194,-339,-336,-527,-524,-525,-521,-687,-671,-631,-471,-900,-697,-1609,-1410,-2718,-2652,-29989,-5347,-29984,-29981,-29974,-5203]} 1. Nf3 {[%emt 0:00:03]} c5 {[%emt 0:00:23]} 2. c4 {[%emt 0:00:11]} Nf6 {[%emt 0:00:13]} 3. Nc3 {[%emt 0:00:21]} d5 {[%emt 0:00:17]} 4. cxd5 {[%emt 0:00:06]} Nxd5 {[%emt 0:00:04]} 5. g3 {[%emt 0:00:07]} Nc7 {[%emt 0:01:08]} 6. Bg2 {[%emt 0:00:05]} Nc6 {[%emt 0:00:10]} 7. a3 {[%emt 0:00:06]} g6 {[%emt 0:01:24]} 8. h4 {[%emt 0:00:16] A34: Symmetrical English: 2 Nc3, lines with ...d5.} h6 {[%emt 0:00:32]} 9. d3 {[%emt 0:00:24]} Bg7 {[%emt 0:00:25]} 10. Be3 {[%emt 0:00:23] The position is equal.} Nd4 {[%emt 0:08:59]} 11. Na4 {[%emt 0:05:27] [#]} Nd5 $146 {[%emt 0:10:31]} ({Predecessor:} 11... b6 12. Nxd4 cxd4 13. Bxa8 Nxa8 14. Bd2 b5 15. Rc1 Bb7 16. Qb3 Qd5 17. Qxd5 Bxd5 {1-0 (41) Pavlovic,M (2336)-Milanovic,D (2429) Dimitrovgrad 2003}) 12. Nxd4 $2 {[%emt 0:18:16] [#]} (12. Nxc5 $14 {stays ahead.} Nxe3 13. fxe3) 12... Nxe3 $17 {[%emt 0:02:13]} ({Resist} 12... Bxd4 13. Bxd4 cxd4 14. Qc1 $14) ({Worse is} 12... cxd4 13. Bd2 $15) 13. fxe3 {[%emt 0:00:12]} cxd4 {[%emt 0:00:05]} 14. Nc5 {[%emt 0:08:47]} (14. exd4 $17 {was necessary.} Qxd4 15. Nc3) 14... O-O $19 {[%emt 0:11:40]} 15. Qc1 {[%emt 0:19:28]} dxe3 {[%emt 0:01:31]} 16. Qxe3 {[%emt 0:05:46]} (16. O-O $142) 16... Bxb2 {[%emt 0:06:06]} 17. Rb1 {[%emt 0:02:04]} (17. Nb3 $142 Bxa1 18. Nxa1) 17... Bd4 {[%emt 0:02:33] This bishop pair is nice.} 18. Qxh6 {[%emt 0:05:11][%cal Oh4h5]} Qa5+ {[%emt 0:00:56]} 19. Rb4 {[%emt 0:04:59]} Qxc5 {[%emt 0:03:19]} 20. Rc4 {[%emt 0:03:37]} Qe5 {[%emt 0:14:09]} 21. Kd2 {[%emt 0:06:45] Prevents Be3+.} (21. Qf4 $142 Qa5+ 22. Kf1) 21... Be6 {[%emt 0:03:23]} 22. e3 {[%emt 0:02:29]} Bxc4 {[%emt 0:04:35]} 23. exd4 {[%emt 0:01:55]} Qxd4 {[%emt 0:00:05]} 24. Be4 {[%emt 0:00:05]} Rad8 {[%emt 0:00:30]} (24... Qf2+ $142 25. Kc3 Ba2 26. Bd5 Bxd5 27. Qf4 Rac8+ 28. Qc4 Qe3 29. Kb2 Rxc4 30. dxc4 Bxh1 31. g4 Rd8 32. h5 Rd2+ 33. Kc1 Qe1#) 25. Bxg6 {[%emt 0:01:10]} fxg6 {[%emt 0:00:09]} 26. Qxg6+ {[%emt 0:00:04]} Qg7 {[%emt 0:00:04] White did not feel at home in the position after the opening.  Weighted Error Value: White=1.91/Black=0.66} 0-1